[Event "Sunway Sitges Chess Festival"]
[Date "2024.12.22"]
[White "Jaksland, Tim"]
[Black "Torres Rosas, Luis Carlos"]
[WhiteElo "2107"]
[BlackElo "2277"]
[Round "10.27"]
[Result "1/2-1/2"]
[TimeControl "40/5400+30:1800+30"]

1. e4 {[%clk 1:27:41]} 1... e6 {[%clk 1:30:08]} 2. d4 {[%clk 1:27:48]} 2... d5
{[%clk 1:30:31]} 3. exd5 {[%clk 1:27:43]} 3... exd5 {[%clk 1:30:53]} 4. Nf3
{[%clk 1:28:09]} 4... Nf6 {[%clk 1:31:12]} 5. h3 {[%clk 1:25:30]} 5... Bd6
{[%clk 1:28:41]} 6. Bd3 {[%clk 1:25:31]} 6... O-O {[%clk 1:25:31]} 7. O-O {[%clk
1:25:55]} 7... Nc6 {[%clk 1:25:46]} 8. c3 {[%clk 1:22:43]} 8... Re8 {[%clk
1:14:57]} 9. Re1 {[%clk 1:19:02]} 9... Rxe1+ {[%clk 1:08:08]} 10. Qxe1 {[%clk
1:19:24]} 10... Ne7 {[%clk 1:07:06]} 11. Ne5 {[%clk 0:57:50]} 11... Bf5 {[%clk
1:06:44]} 12. Qe2 {[%clk 0:48:30]} 12... Bxd3 {[%clk 1:04:23]} 13. Nxd3 {[%clk
0:42:36]} 13... Ng6 {[%clk 1:02:42]} 14. Nd2 {[%clk 0:41:29]} 14... Qe8 {[%clk
1:00:54]} 15. Qxe8+ {[%clk 0:41:04]} 15... Rxe8 {[%clk 1:01:16]} 16. Kf1 {[%clk
0:40:33]} 16... b6 {[%clk 1:00:04]} 17. Nf3 {[%clk 0:35:57]} 17... Ne4 {[%clk
0:51:48]} 18. Be3 {[%clk 0:32:22]} 18... Ng3+ {[%clk 0:47:13]} 19. Kg1 {[%clk
0:32:43]} 19... Nf5 {[%clk 0:47:34]} 20. Bd2 {[%clk 0:32:49]} 20... h5 {[%clk
0:47:44]} 21. Re1 {[%clk 0:32:14]} 21... Rxe1+ {[%clk 0:42:23]} 22. Nfxe1 {[%clk
0:32:02]} 22... f6 {[%clk 0:42:27]} 23. g4 {[%clk 0:29:36]} 23... hxg4 {[%clk
0:42:51]} 24. hxg4 {[%clk 0:30:01]} 24... Nfh4 {[%clk 0:41:25]} 25. Kf1 {[%clk
0:29:55]} 25... Kf7 {[%clk 0:39:02]} 26. Ke2 {[%clk 0:29:06]} 26... Ke6 {[%clk
0:36:55]} 27. Be3 {[%clk 0:29:22]} 27... c6 {[%clk 0:35:20]} 28. f3 {[%clk
0:28:39]} 28... Ne7 {[%clk 0:35:11]} 29. Bf4 {[%clk 0:27:20]} 29... Nc8 {[%clk
0:35:35]} 30. Bxd6 {[%clk 0:26:03]} 30... Nxd6 {[%clk 0:35:57]} 31. Nf4+ {[%clk
0:26:09]} 31... Kf7 {[%clk 0:35:29]} 32. Neg2 {[%clk 0:25:19]} 1/2-1/2

[Variant "Standard"]
[Site "Europe Echecs"]

[Event "Sunway Sitges Chess Festival"]
[Date "2024.12.22"]
[White "Piccoli, Lucas Fonseca"]
[Black "Patel, Zain"]
[WhiteElo "2270"]
[BlackElo "2099"]
[Round "10.28"]
[Result "1-0"]
[TimeControl "40/5400+30:1800+30"]

1. e4 {[%clk 1:30:58]} 1... e5 {[%clk 1:15:33]} 2. Nf3 {[%clk 1:31:22]} 2... Nc6
{[%clk 1:15:58]} 3. d4 {[%clk 1:31:43]} 3... exd4 {[%clk 1:16:16]} 4. Nxd4
{[%clk 1:32:03]} 4... Nf6 {[%clk 1:12:27]} 5. Nxc6 {[%clk 1:32:25]} 5... bxc6
{[%clk 1:12:35]} 6. e5 {[%clk 1:32:47]} 6... Qe7 {[%clk 1:12:47]} 7. Qe2 {[%clk
1:33:10]} 7... Nd5 {[%clk 1:13:01]} 8. Nd2 {[%clk 1:33:35]} 8... a5 {[%clk
1:09:57]} 9. c4 {[%clk 1:32:00]} 9... Ba6 {[%clk 1:05:48]} 10. b3 {[%clk
1:28:05]} 10... g6 {[%clk 1:03:53]} 11. Bb2 {[%clk 1:17:30]} 11... Bg7 {[%clk
0:58:29]} 12. g3 {[%clk 1:16:01]} 12... O-O {[%clk 0:56:31]} 13. Bg2 {[%clk
1:16:18]} 13... a4 {[%clk 0:55:49]} 14. O-O {[%clk 1:15:36]} 14... a3 {[%clk
0:55:01]} 15. Bd4 {[%clk 1:16:00]} 15... Rfe8 {[%clk 0:52:01]} 16. Rfe1 {[%clk
1:12:52]} 16... Nb4 {[%clk 0:45:51]} 17. Ne4 {[%clk 1:03:49]} 17... Bxe5 {[%clk
0:39:58]} 18. Qd2 {[%clk 0:56:20]} 18... d6 {[%clk 0:34:17]} 19. f4 {[%clk
0:54:43]} 19... Rad8 {[%clk 0:28:09]} 20. Qc3 {[%clk 0:44:41]} 20... d5 {[%clk
0:23:27]} 21. Nf6+ {[%clk 0:21:14]} 21... Qxf6 {[%clk 0:20:17]} 22. fxe5 {[%clk
0:20:52]} 22... Qe7 {[%clk 0:20:09]} 23. e6 {[%clk 0:19:31]} 23... fxe6 {[%clk
0:18:56]} 24. Bh3 {[%clk 0:20:00]} 24... Bc8 {[%clk 0:15:32]} 25. c5 {[%clk
0:20:25]} 25... Na6 {[%clk 0:13:11]} 26. Re5 {[%clk 0:20:27]} 26... Bd7 {[%clk
0:08:58]} 27. Rae1 {[%clk 0:20:07]} 27... Rb8 {[%clk 0:08:57]} 28. Bf1 {[%clk
0:16:36]} 28... Nb4 {[%clk 0:07:30]} 29. Qd2 {[%clk 0:17:05]} 29... Bc8 {[%clk
0:07:11]} 30. Bh3 {[%clk 0:16:09]} 30... Rb5 {[%clk 0:07:20]} 31. Rf1 {[%clk
0:14:17]} 31... Na6 {[%clk 0:06:53]} 32. Qh6 {[%clk 0:07:58]} 32... Nxc5 {[%clk
0:05:47]} 33. Rg5 {[%clk 0:07:47]} 33... e5 {[%clk 0:04:26]} 34. Rxg6+ {[%clk
0:08:16]} 34... hxg6 {[%clk 0:03:12]} 35. Qxg6+ {[%clk 0:08:45]} 35... Kh8
{[%clk 0:02:43]} 36. Rf7 {[%clk 0:07:21]} 36... Qxf7 {[%clk 0:02:59]} 37. Qxf7
{[%clk 0:07:45]} 37... exd4 {[%clk 0:01:47]} 38. Qxe8+ {[%clk 0:08:08]} 38...
Kg7 {[%clk 0:02:06]} 39. Bxc8 {[%clk 0:07:09]} 39... d3 {[%clk 0:01:49]} 40.
Qe7+ {[%clk 0:32:50]} 40... Kg6 {[%clk 0:32:04]} 41. g4 {[%clk 0:32:13]} 41...
Ne4 {[%clk 0:32:21]} 42. Bf5+ {[%clk 0:32:24]} 42... Kh6 {[%clk 0:32:46]} 43. h4
{[%clk 0:28:27]} 1-0

[Variant "Standard"]
[Site "Europe Echecs"]

[Event "Sunway Sitges Chess Festival"]
[Date "2024.12.22"]
[White "Van Zyl-Rudd, Jack"]
[Black "Mizzi, Jack"]
[WhiteElo "2268"]
[BlackElo "2097"]
[Round "10.29"]
[Result "1-0"]
[TimeControl "40/5400+30:1800+30"]

1. d4 {[%clk 1:30:45]} 1... Nf6 {[%clk 1:30:41]} 2. c4 {[%clk 1:31:09]} 2... e6
{[%clk 1:30:56]} 3. Nf3 {[%clk 1:31:23]} 3... b6 {[%clk 1:30:56]} 4. g3 {[%clk
1:29:34]} 4... Bb7 {[%clk 1:29:13]} 5. Bg2 {[%clk 1:29:57]} 5... Bb4+ {[%clk
1:26:42]} 6. Bd2 {[%clk 1:22:24]} 6... Qe7 {[%clk 1:25:51]} 7. O-O {[%clk
1:14:11]} 7... Bxd2 {[%clk 1:25:54]} 8. Qxd2 {[%clk 1:13:37]} 8... O-O {[%clk
1:20:09]} 9. Nc3 {[%clk 1:05:41]} 9... d6 {[%clk 1:13:29]} 10. Rfe1 {[%clk
0:35:22]} 10... e5 {[%clk 0:56:26]} 11. e4 {[%clk 0:31:21]} 11... Nbd7 {[%clk
0:52:27]} 12. d5 {[%clk 0:29:43]} 12... a5 {[%clk 0:50:29]} 13. b3 {[%clk
0:29:36]} 13... Nc5 {[%clk 0:45:46]} 14. Qc2 {[%clk 0:29:19]} 14... g6 {[%clk
0:43:53]} 15. a3 {[%clk 0:28:14]} 15... c6 {[%clk 0:41:18]} 16. b4 {[%clk
0:21:59]} 16... Ncd7 {[%clk 0:40:58]} 17. Qb3 {[%clk 0:14:37]} 17... Rfc8 {[%clk
0:38:03]} 18. dxc6 {[%clk 0:13:39]} 18... Bxc6 {[%clk 0:37:53]} 19. Nd5 {[%clk
0:13:24]} 19... Bxd5 {[%clk 0:37:42]} 20. exd5 {[%clk 0:13:28]} 20... b5 {[%clk
0:35:58]} 21. cxb5 {[%clk 0:12:12]} 21... a4 {[%clk 0:34:04]} 22. Qb2 {[%clk
0:09:11]} 22... Qd8 {[%clk 0:32:46]} 23. Rac1 {[%clk 0:08:16]} 23... Nb6 {[%clk
0:32:42]} 24. Nd2 {[%clk 0:07:24]} 24... Rxc1 {[%clk 0:31:49]} 25. Rxc1 {[%clk
0:07:44]} 25... Rc8 {[%clk 0:32:05]} 26. Rc6 {[%clk 0:07:30]} 26... Nfxd5 {[%clk
0:28:20]} 27. Bxd5 {[%clk 0:04:31]} 27... Nxd5 {[%clk 0:28:42]} 28. Ne4 {[%clk
0:04:59]} 28... Rxc6 {[%clk 0:27:35]} 29. bxc6 {[%clk 0:05:27]} 29... Nb6 {[%clk
0:23:29]} 30. Qc1 {[%clk 0:05:42]} 30... d5 {[%clk 0:22:27]} 31. c7 {[%clk
0:05:44]} 31... Qf8 {[%clk 0:22:51]} 32. Nf6+ {[%clk 0:05:50]} 32... Kg7 {[%clk
0:22:54]} 33. Nd7 {[%clk 0:06:12]} 1-0

[Variant "Standard"]
[Site "Europe Echecs"]

[Event "Sunway Sitges Chess Festival"]
[Date "2024.12.22"]
[White "Hu, Jiani"]
[Black "Liu, Yi"]
[WhiteElo "2101"]
[BlackElo "2261"]
[Round "10.30"]
[Result "0-1"]
[TimeControl "40/5400+30:1800+30"]

1. e4 {[%clk 1:30:57]} 1... e6 {[%clk 1:30:59]} 2. d4 {[%clk 1:31:22]} 2... d5
{[%clk 1:31:27]} 3. exd5 {[%clk 1:31:45]} 3... exd5 {[%clk 1:31:52]} 4. Bd3
{[%clk 1:32:07]} 4... c5 {[%clk 1:30:06]} 5. Qe2+ {[%clk 1:28:08]} 5... Be7
{[%clk 1:30:08]} 6. dxc5 {[%clk 1:27:33]} 6... Nf6 {[%clk 1:30:33]} 7. Nc3
{[%clk 1:21:45]} 7... O-O {[%clk 1:28:38]} 8. Bf4 {[%clk 1:19:31]} 8... Bxc5
{[%clk 1:10:35]} 9. O-O-O {[%clk 1:19:29]} 9... Qa5 {[%clk 1:04:07]} 10. Kb1
{[%clk 1:11:06]} 10... Re8 {[%clk 1:00:50]} 11. Qd2 {[%clk 1:09:16]} 11... Nc6
{[%clk 1:01:07]} 12. Nb5 {[%clk 1:02:39]} 12... Qxd2 {[%clk 1:01:03]} 13. Bxd2
{[%clk 1:02:59]} 13... Re7 {[%clk 1:00:57]} 14. Bf4 {[%clk 0:58:41]} 14... Ng4
{[%clk 0:50:31]} 15. Nh3 {[%clk 0:52:16]} 15... Nge5 {[%clk 0:46:56]} 16. Bxe5
{[%clk 0:45:20]} 16... Nxe5 {[%clk 0:40:43]} 17. Nf4 {[%clk 0:42:13]} 17... Be6
{[%clk 0:33:37]} 18. Nxe6 {[%clk 0:34:42]} 18... fxe6 {[%clk 0:33:59]} 19. f3
{[%clk 0:32:54]} 19... a6 {[%clk 0:23:47]} 20. Nc3 {[%clk 0:31:41]} 20... b5
{[%clk 0:23:37]} 21. Ne2 {[%clk 0:17:33]} 21... Rf8 {[%clk 0:21:25]} 22. Rhe1
{[%clk 0:16:57]} 22... g5 {[%clk 0:18:56]} 23. a4 {[%clk 0:14:07]} 23... Nxd3
{[%clk 0:13:58]} 24. Rxd3 {[%clk 0:14:18]} 24... bxa4 {[%clk 0:14:16]} 25. Nd4
{[%clk 0:08:42]} 25... e5 {[%clk 0:11:12]} 26. Nc6 {[%clk 0:03:35]} 26... Re6
{[%clk 0:11:09]} 27. Rxd5 {[%clk 0:03:06]} 27... Rxc6 {[%clk 0:11:36]} 28. Rexe5
{[%clk 0:03:26]} 28... Rfc8 {[%clk 0:08:56]} 29. Rxg5+ {[%clk 0:03:12]} 29...
Kh8 {[%clk 0:09:26]} 30. Rd7 {[%clk 0:02:44]} 30... R6c7 {[%clk 0:02:40]} 31.
Rxc7 {[%clk 0:02:39]} 31... Rxc7 {[%clk 0:03:09]} 32. Rg4 {[%clk 0:02:58]} 32...
a3 {[%clk 0:03:01]} 33. bxa3 {[%clk 0:02:48]} 33... Bxa3 {[%clk 0:03:01]} 34.
Ra4 {[%clk 0:02:20]} 34... Rb7+ {[%clk 0:02:54]} 35. Ka2 {[%clk 0:02:05]} 35...
Bd6 {[%clk 0:01:57]} 36. Rxa6 {[%clk 0:01:41]} 36... Bxh2 {[%clk 0:02:10]} 37.
g4 {[%clk 0:00:46]} 37... Kg7 {[%clk 0:01:03]} 38. c4 {[%clk 0:00:41]} 38... Bg1
{[%clk 0:00:48]} 39. Rd6 {[%clk 0:00:48]} 39... Rf7 {[%clk 0:00:43]} 40. Rd3
{[%clk 0:30:58]} 40... Kg6 {[%clk 0:30:34]} 41. Kb3 {[%clk 0:23:00]} 41... Kg5
{[%clk 0:19:45]} 42. Kc3 {[%clk 0:18:17]} 42... Kf4 {[%clk 0:19:39]} 43. Kd2
{[%clk 0:16:08]} 43... Ra7 {[%clk 0:17:26]} 44. Rc3 {[%clk 0:04:15]} 44... Be3+
{[%clk 0:14:33]} 45. Kc2 {[%clk 0:02:25]} 45... Bc5 {[%clk 0:10:52]} 46. Rb3
{[%clk 0:01:31]} 46... Ra2+ {[%clk 0:10:04]} 47. Kb1 {[%clk 0:01:41]} 47... Ra4
{[%clk 0:09:06]} 48. Rc3 {[%clk 0:00:47]} 48... Ra3 {[%clk 0:07:57]} 49. Rc2
{[%clk 0:00:35]} 49... Rxf3 {[%clk 0:07:46]} 50. Rh2 {[%clk 0:00:00]} 0-1

[Variant "Standard"]
[Site "Europe Echecs"]

[Event "Sunway Sitges Chess Festival"]
[Date "2024.12.22"]
[White "Yang, Qindong"]
[Black "Vivaan Rana"]
[WhiteElo "2258"]
[BlackElo "1899"]
[Round "10.31"]
[Result "1-0"]
[TimeControl "40/5400+30:1800+30"]

1. Nf3 {[%clk 1:30:59]} 1... d5 {[%clk 1:30:36]} 2. g3 {[%clk 1:29:58]} 2... Nf6
{[%clk 1:31:01]} 3. Bg2 {[%clk 1:30:20]} 3... c6 {[%clk 1:31:12]} 4. O-O {[%clk
1:30:18]} 4... Bg4 {[%clk 1:31:35]} 5. d3 {[%clk 1:26:50]} 5... Nbd7 {[%clk
1:31:47]} 6. c4 {[%clk 1:26:04]} 6... e6 {[%clk 1:32:10]} 7. h3 {[%clk 1:21:57]}
7... Bf5 {[%clk 1:32:27]} 8. Nh4 {[%clk 1:19:26]} 8... Bg6 {[%clk 1:32:42]} 9.
cxd5 {[%clk 1:18:26]} 9... exd5 {[%clk 1:32:45]} 10. Qc2 {[%clk 1:17:32]} 10...
Bd6 {[%clk 1:26:01]} 11. e4 {[%clk 1:14:53]} 11... O-O {[%clk 1:21:53]} 12. Nc3
{[%clk 0:53:57]} 12... dxe4 {[%clk 1:16:39]} 13. dxe4 {[%clk 0:54:20]} 13... Nh5
{[%clk 1:04:43]} 14. Rd1 {[%clk 0:46:32]} 14... Qc7 {[%clk 1:00:39]} 15. Qd3
{[%clk 0:41:22]} 15... Bc5 {[%clk 0:58:49]} 16. Be3 {[%clk 0:29:17]} 16... Ne5
{[%clk 0:46:47]} 17. Qe2 {[%clk 0:28:53]} 17... Be7 {[%clk 0:46:59]} 18. Nf5
{[%clk 0:25:50]} 18... Rfd8 {[%clk 0:40:34]} 19. g4 {[%clk 0:21:00]} 19... Nf6
{[%clk 0:38:31]} 20. Nxe7+ {[%clk 0:19:10]} 20... Qxe7 {[%clk 0:38:54]} 21. f4
{[%clk 0:19:31]} 21... Ned7 {[%clk 0:37:01]} 22. f5 {[%clk 0:19:03]} 22... h6
{[%clk 0:37:22]} 23. fxg6 {[%clk 0:19:12]} 23... fxg6 {[%clk 0:37:47]} 24. Bf4
{[%clk 0:16:55]} 24... Ne5 {[%clk 0:38:09]} 25. Rxd8+ {[%clk 0:16:42]} 25...
Rxd8 {[%clk 0:38:31]} 26. Rd1 {[%clk 0:15:49]} 26... Rf8 {[%clk 0:39:00]} 27.
Bxe5 {[%clk 0:14:03]} 27... Qxe5 {[%clk 0:39:27]} 28. Qc4+ {[%clk 0:14:27]}
28... Kh7 {[%clk 0:39:47]} 29. Qd4 {[%clk 0:13:12]} 29... Qg5 {[%clk 0:39:56]}
30. e5 {[%clk 0:12:08]} 30... Ne8 {[%clk 0:40:24]} 31. Ne4 {[%clk 0:11:40]}
31... Qh4 {[%clk 0:40:41]} 32. Qd8 {[%clk 0:07:56]} 32... g5 {[%clk 0:40:07]}
33. Qe7 {[%clk 0:06:55]} 33... Kg8 {[%clk 0:40:32]} 34. Rf1 {[%clk 0:06:39]}
34... Rxf1+ {[%clk 0:40:52]} 35. Kxf1 {[%clk 0:07:02]} 1-0

[Variant "Standard"]
[Site "Europe Echecs"]

[Event "Sunway Sitges Chess Festival"]
[Date "2024.12.22"]
[White "Koh, Ming Yao Gavin"]
[Black "Shukhman, Anna"]
[WhiteElo "1995"]
[BlackElo "2245"]
[Round "10.32"]
[Result "0-1"]
[TimeControl "40/5400+30:1800+30"]

1. d4 {[%clk 1:30:40]} 1... Nf6 {[%clk 1:30:53]} 2. c4 {[%clk 1:31:01]} 2... g6
{[%clk 1:31:21]} 3. Nc3 {[%clk 1:31:21]} 3... d5 {[%clk 1:31:49]} 4. cxd5 {[%clk
1:31:39]} 4... Nxd5 {[%clk 1:32:17]} 5. e4 {[%clk 1:31:59]} 5... Nxc3 {[%clk
1:32:45]} 6. bxc3 {[%clk 1:32:09]} 6... Bg7 {[%clk 1:33:13]} 7. Bc4 {[%clk
1:32:30]} 7... c5 {[%clk 1:33:20]} 8. Ne2 {[%clk 1:32:52]} 8... O-O {[%clk
1:33:47]} 9. O-O {[%clk 1:32:52]} 9... Nc6 {[%clk 1:34:15]} 10. Be3 {[%clk
1:33:08]} 10... b6 {[%clk 1:34:41]} 11. Rc1 {[%clk 1:33:28]} 11... Bb7 {[%clk
1:34:44]} 12. Bb5 {[%clk 1:33:43]} 12... Rc8 {[%clk 1:34:06]} 13. h4 {[%clk
1:25:12]} 13... cxd4 {[%clk 1:24:36]} 14. cxd4 {[%clk 1:23:24]} 14... Nxd4
{[%clk 1:23:49]} 15. Rxc8 {[%clk 1:20:27]} 15... Nxe2+ {[%clk 1:24:10]} 16. Qxe2
{[%clk 1:20:28]} 16... Qxc8 {[%clk 1:24:23]} 17. f3 {[%clk 1:19:25]} 17... Qb8
{[%clk 1:05:58]} 18. Bg5 {[%clk 1:12:57]} 18... Bd4+ {[%clk 1:01:24]} 19. Kh1
{[%clk 1:11:53]} 19... Qg3 {[%clk 0:59:37]} 20. f4 {[%clk 0:57:19]} 20... Rc8
{[%clk 0:57:52]} 21. Bxe7 {[%clk 0:53:27]} 21... Rc7 {[%clk 0:39:57]} 22. Bd8
{[%clk 0:51:30]} 22... Rc3 {[%clk 0:38:41]} 23. Qe1 {[%clk 0:48:16]} 23... Qg4
{[%clk 0:38:21]} 24. Kh2 {[%clk 0:44:23]} 24... Re3 {[%clk 0:34:58]} 25. Qf2
{[%clk 0:43:38]} 25... Bxe4 {[%clk 0:35:10]} 0-1

[Variant "Standard"]
[Site "Europe Echecs"]

[Event "Sunway Sitges Chess Festival"]
[Date "2024.12.22"]
[White "Diaz Rosas, Julio Cesar"]
[Black "Wang, Lachlan"]
[WhiteElo "2401"]
[BlackElo "1848"]
[Round "10.33"]
[Result "1-0"]
[TimeControl "40/5400+30:1800+30"]

1. d4 {[%clk 1:30:33]} 1... Nf6 {[%clk 1:30:54]} 2. c4 {[%clk 1:30:59]} 2... g6
{[%clk 1:31:20]} 3. Nc3 {[%clk 1:31:24]} 3... Bg7 {[%clk 1:31:46]} 4. e4 {[%clk
1:31:49]} 4... d6 {[%clk 1:32:13]} 5. Be2 {[%clk 1:32:15]} 5... O-O {[%clk
1:32:36]} 6. Be3 {[%clk 1:32:42]} 6... e5 {[%clk 1:32:55]} 7. d5 {[%clk
1:33:08]} 7... a5 {[%clk 1:33:05]} 8. g4 {[%clk 1:33:35]} 8... Na6 {[%clk
1:33:12]} 9. g5 {[%clk 1:34:02]} 9... Nd7 {[%clk 1:33:38]} 10. h4 {[%clk
1:34:26]} 10... Ndc5 {[%clk 1:33:01]} 11. h5 {[%clk 1:34:47]} 11... c6 {[%clk
1:26:55]} 12. Nf3 {[%clk 1:34:15]} 12... a4 {[%clk 1:25:58]} 13. Nd2 {[%clk
1:06:09]} 13... Qa5 {[%clk 1:24:26]} 14. a3 {[%clk 1:06:24]} 14... Bd7 {[%clk
1:02:25]} 15. f3 {[%clk 1:06:31]} 15... Rfc8 {[%clk 0:53:10]} 16. Kf2 {[%clk
1:06:34]} 16... Nc7 {[%clk 0:48:00]} 17. Qg1 {[%clk 1:05:31]} 17... cxd5 {[%clk
0:48:07]} 18. cxd5 {[%clk 1:05:28]} 18... Nb5 {[%clk 0:45:12]} 19. hxg6 {[%clk
0:55:43]} 19... hxg6 {[%clk 0:43:54]} 20. Nc4 {[%clk 0:55:10]} 20... Qc7 {[%clk
0:44:13]} 21. Nxb5 {[%clk 0:54:53]} 21... Bxb5 {[%clk 0:44:41]} 22. Rc1 {[%clk
0:54:24]} 22... Bxc4 {[%clk 0:38:38]} 23. Rxc4 {[%clk 0:53:39]} 23... Qd7 {[%clk
0:37:13]} 24. Qf1 {[%clk 0:39:56]} 24... Nb3 {[%clk 0:30:19]} 25. Qh3 {[%clk
0:38:52]} 25... Qxh3 {[%clk 0:30:02]} 26. Rxh3 {[%clk 0:39:20]} 26... Rxc4
{[%clk 0:26:42]} 27. Bxc4 {[%clk 0:39:47]} 27... Rc8 {[%clk 0:27:00]} 28. Bxb3
{[%clk 0:34:03]} 28... axb3 {[%clk 0:27:20]} 29. Kg3 {[%clk 0:34:30]} 29... Bf8
{[%clk 0:25:22]} 30. Rh2 {[%clk 0:34:34]} 30... Be7 {[%clk 0:24:48]} 31. Rd2
{[%clk 0:34:54]} 31... Kf8 {[%clk 0:10:43]} 32. Rd3 {[%clk 0:35:16]} 32... Ke8
{[%clk 0:10:18]} 33. Rxb3 {[%clk 0:35:39]} 33... Rc7 {[%clk 0:10:47]} 34. Kf2
{[%clk 0:31:39]} 34... Kd7 {[%clk 0:10:59]} 35. Ke2 {[%clk 0:31:46]} 35... Kc8
{[%clk 0:08:46]} 36. Kd3 {[%clk 0:32:05]} 36... Kb8 {[%clk 0:08:04]} 37. Rc3
{[%clk 0:32:27]} 37... Rd7 {[%clk 0:07:32]} 38. Rc2 {[%clk 0:32:25]} 38... Rd8
{[%clk 0:07:11]} 39. Rh2 {[%clk 0:32:42]} 39... Rf8 {[%clk 0:07:13]} 40. Rh7
{[%clk 1:01:56]} 40... Kc7 {[%clk 0:36:44]} 41. a4 {[%clk 1:02:02]} 41... Bd8
{[%clk 0:34:43]} 42. b4 {[%clk 1:01:56]} 42... Kd7 {[%clk 0:33:59]} 43. a5
{[%clk 1:01:41]} 43... Kc8 {[%clk 0:31:57]} 44. Rg7 {[%clk 1:01:37]} 44... Be7
{[%clk 0:29:23]} 45. b5 {[%clk 0:59:48]} 45... Bd8 {[%clk 0:29:29]} 46. b6
{[%clk 0:59:35]} 46... Kb8 {[%clk 0:29:29]} 47. Kc4 {[%clk 0:58:13]} 47... Be7
{[%clk 0:29:01]} 48. Kb5 {[%clk 0:58:37]} 48... Bd8 {[%clk 0:28:58]} 49. f4
{[%clk 0:58:15]} 49... exf4 {[%clk 0:28:09]} 50. Bxf4 {[%clk 0:58:42]} 50... Be7
{[%clk 0:28:38]} 51. e5 {[%clk 0:52:40]} 51... dxe5 {[%clk 0:28:47]} 52. Bxe5+
{[%clk 0:53:04]} 52... Ka8 {[%clk 0:28:31]} 53. Bf4 {[%clk 0:52:16]} 53... Rd8
{[%clk 0:27:51]} 54. d6 {[%clk 0:52:29]} 54... Bf8 {[%clk 0:27:01]} 55. Rxf7
{[%clk 0:52:49]} 55... Bxd6 {[%clk 0:25:59]} 56. Bxd6 {[%clk 0:53:12]} 56... Re8
{[%clk 0:26:28]} 57. a6 {[%clk 0:52:31]} 57... Re5+ {[%clk 0:26:52]} 58. Bxe5
{[%clk 0:52:17]} 1-0

[Variant "Standard"]
[Site "Europe Echecs"]